Cogmind - Beta 14 @@@ ROGUE MODE // 2025.01.05 @ 02:12:36 Player: nado Result: Destroyed by B-75 Beast with Magnetic Acceleration Cannon Performance ------------- Evolutions (5) 2500 Regions Visited (13) 2600 Robots Destroyed (138) 690 Value Destroyed (5242) 5242 Prototype IDs (39) 780 Alien Tech Used (0) 0 Bonus (804) 804 TOTAL SCORE: 12616 Bonus ------- High Alert Combat Kills 188 Follower Combat Kills 39 Aligned with FarCom 300 Met Data Miner 300 Friendly Fire -23 Cogmind --------- Core Integrity 0/1000 Matter 300/300 Energy 98/100 System Corruption 11% Temperature Cool (0) Movement Core (50) Location -5/Upper Caves Parts ------- > --- POWER (1) -------- (None) > --- PROPULSION (5) --- (None) > --- UTILITY (7) ------ Improved Signal Interpreter > --- WEAPON (4) ------- Lance > --- INVENTORY (5) ---- Reinforced Fission Core Heavy Flak Cannon Heavy Rocket Launcher Peak State ------------ > --- POWER ------------ Light Angular Momentum Engine > --- PROPULSION ------- Carbon-fiber Leg VSS Leg Improved Titanium Leg Flexi-carbon Leg Flexi-carbon Leg > --- UTILITY ---------- Advanced Heat Sink High-capacity Storage Unit Improved Signal Interpreter Improved Transmission Jammer ECM Suite Improved Medium Armor Plating Light Regenerative Plating > --- WEAPON ----------- Gatling Laser Gatling Laser Heavy Plasma Cannon Mass Driver > --- INVENTORY -------- F-cell Engine Reinforced Fission Core Micro Fission Core Power Amplifier Improved Cryofiber Web Matter Filter Energy Filter Improved Particle Charger Improved Particle Charger Improved Heavy Armor Plating Makeshift Light Armor Plating Improved Hacking Suite Heavy Laser Gatling Laser Phase Cannon Magnetic Acceleration Cannon Heavy Flak Cannon Heavy Rocket Launcher Lance [Rating: 79] Favorites ----------- Power Light Angular Momentum Engine Engine Light Angular Momentum Engine Power Core Light Nuclear Core Propulsion Improved Titanium Leg Treads Light Treads Leg Improved Titanium Leg Hover Unit Gravmag System Utility Large Storage Unit Device ECM Suite Storage Large Storage Unit Processor Improved Signal Interpreter Protection Hardened Medium Armor Plating Weapon Advanced Assault Cannon Energy Gun Gatling Laser Energy Cannon Phase Cannon Ballistic Gun Gauss Rifle Ballistic Cannon Advanced Assault Cannon Launcher Grenade Launcher Piercing Weapon Lance Build | -11 -10 -10 -10 -9 -8 -7 -7 -7 -7 -6 -6 -5 -5 ------- Run | Yrd Mat Min Exi Min Mat Fac Low Low Dat Pro Fac Fac Upp Slots Evolved 10 | . . . . . 4 2 . . . . 2 2 . Power . | . . . . . . . . . . . . . . Propulsion 3 | . . . . . 1 1 . . . . . 1 . Utility 5 | . . . . . 2 . . . . . 2 1 . Weapon 2 | . . . . . 1 1 . . . . . . . Parts Attached 124 | 6 13 1 1 1 25 8 2 6 . 9 25 26 1 Power 13 | 1 . . . . 2 1 . 1 . 2 3 3 . Engine 10 | 1 . . . . 2 1 . . . 1 3 2 . Core 3 | . . . . . . . . 1 . 1 . 1 . Reactor . | . . . . . . . . . . . . . . Propulsion 37 | 2 3 . . . 8 4 1 1 . 4 8 6 . Treads 13 | 2 3 . . . 8 . . . . . . . . Leg 23 | . . . . . . 4 1 1 . 4 7 6 . Wheel . | . . . . . . . . . . . . . . Hover 1 | . . . . . . . . . . . 1 . . Flight . | . . . . . . . . . . . . . . Utility 37 | 1 6 . 1 . 7 2 . 2 . 2 6 10 . Device 14 | . . . . . 2 . . . . 2 4 6 . Storage 6 | 1 2 . 1 . . 1 . . . . . 1 . Processor 1 | . . . . . . 1 . . . . . . . Hackware . | . . . . . . . . . . . . . . Protection 16 | . 4 . . . 5 . . 2 . . 2 3 . Artifact . | . . . . . . . . . . . . . . Weapon 37 | 2 4 1 . 1 8 1 1 2 . 1 8 7 1 Energy Gun 8 | 1 1 . . . . 1 . . . . 2 3 . Energy Cannon 4 | . . . . . . . . 1 . . 2 1 . Ballistic Gun 9 | 1 2 . . 1 3 . . . . 1 1 . . Ballistic Cannon 10 | . . . . . 4 . . 1 . . 3 2 . Launcher 5 | . 1 1 . . 1 . 1 . . . . 1 . Special Weapon . | . . . . . . . . . . . . . . Impact Weapon . | . . . . . . . . . . . . . . Slashing Weapon . | . . . . . . . . . . . . . . Piercing Weapon 1 | . . . . . . . . . . . . . 1 Special Melee Weapon . | . . . . . . . . . . . . . . Unidentified Prototypes 2 | . . . . . 1 . . . . . 1 . . Parts Lost 43 | . 1 . . . 4 . 1 4 . 6 9 18 . Power 4 | . . . . . . . . 1 . 1 . 2 . Propulsion 16 | . . . . . 1 . 1 1 . 3 3 7 . Utility 11 | . 1 . . . 2 . . 1 . 1 1 5 . Weapon 12 | . . . . . 1 . . 1 . 1 5 4 . Highest Loss Streak 12 | . 1 . . . 1 . 1 3 . 2 2 12 . To Critical Strikes 1 | . . . . . . . . . . . . 1 . Average Slot Usage (%) 97 | . 99 100 100 100 96 99 100 97 100 97 98 95 8 Engine 7 | . 14 14 14 14 9 6 7 . . 1 5 4 . Treads 11 | . 28 28 28 28 26 . . . . . . . . Leg 15 | . . . . . . 30 30 30 30 29 24 26 . Device 9 | . . . . . 9 7 7 7 7 6 19 19 . Storage 8 | . 14 14 14 14 9 7 7 7 7 7 6 4 . Processor 3 | . . . . . . 6 7 7 7 7 6 5 5 Protection 10 | . 13 14 14 14 15 7 7 7 7 7 5 8 . Energy Gun 4 | . 14 6 . . . 7 7 . . . 5 10 . Energy Cannon 2 | . . . . . . . . 5 7 7 6 4 . Ballistic Gun 7 | . 12 14 14 14 17 7 6 . . 3 3 . . Ballistic Cannon 8 | . . . . . 9 15 15 23 23 19 9 4 . Launcher 2 | . 1 7 14 14 . . . . . . . . . Peak Build Rating 79 | 6 8 8 8 9 42 51 51 51 51 51 61 79 10 Average Rating 39 | 4 7 8 8 8 29 50 50 48 51 48 56 70 7 On Entrance 28 | . 6 8 8 8 9 41 51 49 51 51 45 61 5 Naked Turns . | . . . . . . . . . . . . . . Heaviest Build 91 | 14 32 33 53 54 82 57 57 58 54 56 76 91 3 Greatest Support 87 | 40 40 40 40 40 68 72 74 76 76 78 75 87 3 Greatest Overweight (x) 14 | 1 . . 1 1 1 . . . . 1 2 14 . Average Overweight (x) . | . . . . 1 . . . . . . . . . Largest Inventory Capacity 20 | 8 15 15 20 20 20 20 15 15 15 15 15 20 5 Average Capacity 16 | 7 10 15 15 20 20 15 15 15 15 15 15 18 5 Most Carried 20 | 3 11 13 13 13 20 20 15 15 15 15 15 20 4 Average Carried 14 | 1 8 12 12 12 19 14 14 13 15 13 14 17 3 Final Capacity 20 | 8 15 15 20 20 20 15 15 15 15 15 15 5 5 Final Carried 20 | 3 11 13 12 13 20 15 15 15 15 14 15 4 3 Class Distribution -------------------- 27% | Mutant 25% | Infiltrator-Skirmisher 24% | Tank 9% | Scavenger-Tank 4% | Skirmisher 4% | Scavenger-Skirmisher Dominant Class ---------------- Mutant | -10/Materials Mutant | -10/Mines Mutant | -10/Exiles Mutant | -9/Mines Tank | -8/Materials Scavenger-Skirmisher | -7/Factory Scavenger-Tank | -7/Lower Caves Tank | -7/Lower Caves Tank | -7/Data Miner Tank | -6/Proximity Caves Infiltrator-Skirmisher | -6/Factory Infiltrator-Skirmisher | -5/Factory Mutant | -5/Upper Caves Resources | -11 -10 -10 -10 -9 -8 -7 -7 -7 -7 -6 -6 -5 -5 ----------- Run | Yrd Mat Min Exi Min Mat Fac Low Low Dat Pro Fac Fac Upp Matter Collected 4158 | 260 191 78 . 20 1118 92 341 323 . 534 740 451 10 Remotely . | . . . . . . . . . . . . . . Salvage Created 5027 | . 513 28 . 15 1224 56 291 236 . 450 1115 1026 73 Parts 248 | . 36 4 . 7 67 1 21 11 . 18 49 30 4 Haulers Intercepted 8 | . 1 . . . 3 . . . . . 4 . . Recyclers Shooed 10 | . 1 . . 2 . . . . . . 2 5 . Parts Field Recycled . | . . . . . . . . . . . . . . Retrieved Matter . | . . . . . . . . . . . . . . Parts Self-Destructed 51 | . . . . . . . 21 9 . 16 . . 5 Prevented 4 | . . . . . . . 4 . . . . . . Kills | -11 -10 -10 -10 -9 -8 -7 -7 -7 -7 -6 -6 -5 -5 ------- Run | Yrd Mat Min Exi Min Mat Fac Low Low Dat Pro Fac Fac Upp Combat Hostiles Destroyed 110 | . 16 3 . . 26 1 14 8 . 10 15 14 3 Melee 3 | . . . . . . . . . . . . . 3 Guns 31 | . 7 1 . . 16 . 2 . . 2 1 2 . Cannons 56 | . . . . . 10 1 9 8 . 8 12 8 . AOE 17 | . 9 2 . . . . 3 . . . 1 2 . Classes Destroyed 16 | . 5 . . 2 4 . . 1 . 1 1 2 . Worker 3 | . . . . 1 . . . . . . . 2 . Builder 5 | . 1 . . . . . . . . . 3 1 . Tunneler 4 | . . . . 2 . . . . . . 2 . . Hauler 8 | . 1 . . . 3 . . . . . 4 . . Recycler 5 | . 1 . . . 1 . . . . . 1 2 . Mechanic 1 | . . . . . . . . . . . . 1 . Watcher 2 | . . . . . 1 . . . . . 1 . . Swarmer 29 | . 9 3 . . 3 . 10 . . . 1 . 3 Grunt 45 | . 7 . . . 13 . 3 6 . 6 5 5 . Brawler 5 | . . . . . 1 . . 1 . 1 1 1 . Duelist 2 | . . . . . . . . . . 1 1 . . Sentry 12 | . . . . . 6 1 1 . . . 2 2 . Hunter 5 | . . . . . 3 . . . . 2 . . . Programmer 10 | . . . . . . . . . . . 5 5 . Heavy 1 | . . . . . . . . . . . . 1 . Mutant 1 | . . . . . . . . 1 . . . . . Best Kill Streak 6 | . 6 3 . 2 4 1 6 3 . 4 4 4 2 Combat Bots Only 6 | . 6 3 . . 4 1 6 3 . 4 3 3 2 Max Kills in Single Turn 4 | . 4 2 . 1 1 1 4 2 . 1 2 2 1 Gunslinging . | . . . . . . . . . . . . . . Exploded 4 | . 4 2 . . . . 3 . . . 1 2 . Melee 1 | . . . . . . . . . . . . . 1 Uniques/NPCs Destroyed . | . . . . . . . . . . . . . . Combat | -11 -10 -10 -10 -9 -8 -7 -7 -7 -7 -6 -6 -5 -5 -------- Run | Yrd Mat Min Exi Min Mat Fac Low Low Dat Pro Fac Fac Upp Hostile Shots Fired 696 | . 45 7 . . 89 25 85 33 . 90 104 156 62 Missed 214 | . 15 1 . . 26 5 28 6 . 17 35 55 26 Damage Taken 9494 | . 390 53 . . 971 239 635 432 . 1445 1777 3002 550 Core 1586 | . 77 10 . . 53 . 27 32 . 177 184 511 515 Absorbed by Shields . | . . . . . . . . . . . . . . Regen/Repaired (Parts) 439 | . . . . . . 53 . . . . 117 269 . Core Remaining (%) 79 | 100 . . . 65 90 . . . . 66 78 . . Volleys Fired 304 | . 30 5 . . 70 2 22 20 . 28 74 53 . Largest 4 | . 2 2 . . 3 4 4 4 . 4 4 4 . Hottest 307 | . 70 50 . . 124 189 191 209 . 204 293 307 . Shots Fired 818 | . 54 6 . . 209 8 62 72 . 94 187 126 . Gun 343 | . 48 5 . . 130 4 27 6 . 16 47 60 . Cannon 463 | . . . . . 79 4 33 66 . 78 140 63 . Launcher 12 | . 6 1 . . . . 2 . . . . 3 . Special . | . . . . . . . . . . . . . . Kinetic 535 | . 24 5 . . 209 6 42 53 . 73 96 27 . Thermal 271 | . 24 . . . . 2 18 19 . 21 91 96 . Explosive 12 | . 6 1 . . . . 2 . . . . 3 . Electromagnetic . | . . . . . . . . . . . . . . Robot Hit Streak 23 | . 10 5 . . 14 10 12 6 . 8 12 23 . Robot Miss Streak 9 | . 1 2 . . 9 . 3 5 . 4 5 9 . Penetration Max . | . . . . . . . . . . . . . . Secondary Targets . | . . . . . . . . . . . . . . Shots Hit Robots 501 | . 41 3 . . 137 7 41 37 . 48 95 83 9 Core Hits 304 | . 27 4 . 2 92 3 20 16 . 21 50 68 1 Critical Kills 6 | . . . . . 2 . . . . 1 3 . . Critical Parts Destroyed 3 | . . . . . 1 . . . . . 2 . . Critical Strikes 15 | . . . . . 3 . 2 2 . 3 5 . . Burn 1 | . . . . . . . 1 . . . . . . Destroy 9 | . . . . . 3 . . . . 1 5 . . Blast 5 | . . . . . . . 1 2 . 2 . . . Melee Attacks 14 | . . . . . . . . . . . . . 14 Impact . | . . . . . . . . . . . . . . Slashing . | . . . . . . . . . . . . . . Piercing 14 | . . . . . . . . . . . . . 14 Sneak Attacks . | . . . . . . . . . . . . . . Combat Hostiles . | . . . . . . . . . . . . . . Follow-up Attacks . | . . . . . . . . . . . . . . Damage Inflicted 14245 | . 1047 118 . 35 2365 122 1175 975 . 1191 3361 3480 376 Guns 4583 | . 462 28 . . 1287 56 296 48 . 139 852 1415 . Cannons 6664 | . . . . . 1044 53 629 909 . 1048 1948 1033 . Explosions 2303 | . 543 86 . . . . 250 . . . 512 912 . Melee 376 | . . . . . . . . . . . . . 376 Ramming 319 | . 42 4 . 35 34 13 . 18 . 4 49 120 . Kinetic 7212 | . 195 28 . . 2331 91 743 795 . 937 1489 603 . Thermal 4437 | . 267 . . . . 18 182 162 . 250 1562 1996 . Explosive 1760 | . 543 86 . . . . 250 . . . 261 620 . Electromagnetic 141 | . . . . . . . . . . . . 141 . Impact . | . . . . . . . . . . . . . . Slashing . | . . . . . . . . . . . . . . Piercing 376 | . . . . . . . . . . . . . 376 Highest Corruption 11 | . . . . . . . . . . . 3 11 11 Average Corruption 4 | . . . . . . . . . . . 2 6 11 Corruption Purged . | . . . . . . . . . . . . . . Corruption Blocked . | . . . . . . . . . . . . . . Effects 68 | . . . . . . . . . . . 17 47 4 Message Errors 17 | . . . . . . . . . . . 4 12 1 Matter Fused 8 | . . . . . . . . . . . 5 3 . Heat Flow Errors 7 | . . . . . . . . . . . 1 5 1 Energy Discharges 13 | . . . . . . . . . . . 2 10 1 Parts Rejected 1 | . . . . . . . . . . . . 1 . Data Loss (minor) 11 | . . . . . . . . . . . 1 10 . Data Loss (major) 1 | . . . . . . . . . . . 1 . . Misfires 3 | . . . . . . . . . . . 2 1 . Alerts 1 | . . . . . . . . . . . . 1 . Misdirections 2 | . . . . . . . . . . . . 1 1 Weapon Failures 4 | . . . . . . . . . . . 1 3 . Overload Shots . | . . . . . . . . . . . . . . Overflow Damage 396 | . 64 . . . . . 10 . . 21 147 101 53 Projectiles 98 | . . . . . . . 10 . . 21 52 15 . Explosions 245 | . 64 . . . . . . . . . 95 86 . Melee 53 | . . . . . . . . . . . . . 53 Knockbacks 55 | . . . . . 22 . 8 8 . 8 4 5 . Impact 1 | . . . . . . . . . . . 1 . . Kinetic 51 | . . . . . 21 . 7 8 . 7 3 5 . Secondary 3 | . . . . . 1 . 1 . . 1 . . . Self-Inflicted Damage 1062 | . 79 . . . . . . . . . 798 185 . Shots 17 | . 3 . . . . . . . . . 10 4 . Rammed 19 | . 7 1 . 5 6 . . . . . . . . Targets Rammed 42 | . 8 1 . 8 6 1 . 3 . 1 5 9 . Kicked 19 | . . . . . . 1 . 3 . 1 5 9 . Crushed 4 | . 1 . . 3 . . . . . . . . . Highest Temperature 656 | . 258 . . . 381 150 268 413 . 656 507 632 206 Average Temperature 144 | . 85 . . . 53 85 99 149 . 263 122 210 106 Received Heat Transfer 2115 | . 114 . . . 387 81 120 243 . 483 279 408 . Effects 45 | . . . . . . . . 2 . 18 8 17 . Shutdowns 6 | . . . . . . . . . . 2 1 3 . Energy Bleed 7 | . . . . . . . . . . . 2 5 . Interference 17 | . . . . . . . . 1 . 8 3 5 . Matter Decay 3 | . . . . . . . . . . 2 1 . . Short Circuit 8 | . . . . . . . . . . 4 1 3 . Damage (minor) 4 | . . . . . . . . 1 . 2 . 1 . Siege Activations . | . . . . . . . . . . . . . . Robots Corrupted . | . . . . . . . . . . . . . . Combat Hostiles . | . . . . . . . . . . . . . . Parts Fried . | . . . . . . . . . . . . . . Impact Corruptions . | . . . . . . . . . . . . . . Robots Melted 4 | . . . . . . . . . . . 1 3 . Combat Hostiles 3 | . . . . . . . . . . . 1 2 . Parts Melted 18 | . 2 . . . . . . . . . 6 10 . Heat Transferred 8077 | . 777 . . . . 37 518 296 . 407 2344 3698 . Parts Sabotaged . | . . . . . . . . . . . . . . Parts Stolen . | . . . . . . . . . . . . . . Parts Stripped . | . . . . . . . . . . . . . . Power Chain Reactions . | . . . . . . . . . . . . . . Alert | -11 -10 -10 -10 -9 -8 -7 -7 -7 -7 -6 -6 -5 -5 ------- Run | Yrd Mat Min Exi Min Mat Fac Low Low Dat Pro Fac Fac Upp Peak Influence 544 | . 283 157 . 10 188 53 . . . . 477 544 . Initial 138 | . . 64 . . . 51 . . . . 78 138 . Average 147 | . 108 37 . 1 48 46 . . . . 237 347 . Maximum Alert Level 2 | . 1 . . . . . . . . . 2 2 . Low Security (%) 71 | 100 86 100 . 100 100 100 . . . . 43 24 . Level 1 16 | . 13 . . . . . . . . . 39 30 . Level 2 12 | . . . . . . . . . . . 17 44 . Level 3 . | . . . . . . . . . . . . . . Level 4 . | . . . . . . . . . . . . . . Level 5 . | . . . . . . . . . . . . . . High Security . | . . . . . . . . . . . . . . Max Security . | . . . . . . . . . . . . . . Squads Dispatched 28 | . 3 . . . 6 1 . . . . 8 10 . Investigation 8 | . 2 . . . 1 . . . . . 3 2 . Extermination 7 | . . . . . . 1 . . . . 3 3 . Reinforcement 8 | . 1 . . . 2 . . . . . 2 3 . Assault 2 | . . . . . . . . . . . . 2 . Garrison 3 | . . . . . 3 . . . . . . . . Intercept . | . . . . . . . . . . . . . . Searches Triggered . | . . . . . . . . . . . . . . Construction Impeded . | . . . . . . . . . . . . . . Haulers Reinforced 3 | . . . . . . . . . . . 2 1 . Active Scanning Responses . | . . . . . . . . . . . . . . Cargo Convoy Interrupts . | . . . . . . . . . . . . . . Stealth | -11 -10 -10 -10 -9 -8 -7 -7 -7 -7 -6 -6 -5 -5 --------- Run | Yrd Mat Min Exi Min Mat Fac Low Low Dat Pro Fac Fac Upp Distress Signals 11 | . 3 . . . 7 . . . . . 1 . . Communications Jammed 11 | . . . . . . . . . . . 11 . . Distress Signals 11 | . . . . . . . . . . . 11 . . Times Spotted 168 | . 25 3 . . 38 4 18 9 . 12 24 27 8 Peak Tracking Total 7 | . 7 3 . . 3 4 5 4 . 4 3 5 4 Tactical Retreats 14 | . 2 . . . . . 3 1 . 1 2 4 1 Traps | -11 -10 -10 -10 -9 -8 -7 -7 -7 -7 -6 -6 -5 -5 ------- Run | Yrd Mat Min Exi Min Mat Fac Low Low Dat Pro Fac Fac Upp Traps Triggered 14 | . 4 . . . 1 1 . . . . 4 4 . Indirectly . | . . . . . . . . . . . . . . Trap Hack Attempts . | . . . . . . . . . . . . . . Triggered . | . . . . . . . . . . . . . . Disarmed . | . . . . . . . . . . . . . . Reprogrammed . | . . . . . . . . . . . . . . Reused . | . . . . . . . . . . . . . . Traps Extracted . | . . . . . . . . . . . . . . Installed . | . . . . . . . . . . . . . . Triggered 6 | . . . . . . . 1 . . 2 . 1 2 Machines | -11 -10 -10 -10 -9 -8 -7 -7 -7 -7 -6 -6 -5 -5 ---------- Run | Yrd Mat Min Exi Min Mat Fac Low Low Dat Pro Fac Fac Upp Machines Disabled 35 | . . . . . 3 . . 1 . . 21 10 . Max in Single Turn 8 | . . . . . 1 . . 1 . . 8 4 . Garrison Access 3 | . . . . . . . . . . . 1 2 . Machines Repaired . | . . . . . . . . . . . . . . Machines Dismantled . | . . . . . . . . . . . . . . Machines Sabotaged . | . . . . . . . . . . . . . . Overloaded Fab Kills . | . . . . . . . . . . . . . . Hacking | -11 -10 -10 -10 -9 -8 -7 -7 -7 -7 -6 -6 -5 -5 --------- Run | Yrd Mat Min Exi Min Mat Fac Low Low Dat Pro Fac Fac Upp Machines Accessed 40 | . 6 . 2 . 8 1 1 2 4 . 11 5 . Terminals 23 | . 6 . . . 7 . 1 . . . 7 2 . Fabricators 1 | . . . . . . . . . . . . 1 . Repair Stations 5 | . . . . . . 1 . . . . 3 1 . Recycling Units . | . . . . . . . . . . . . . . Scanalyzers . | . . . . . . . . . . . . . . Garrison Access 3 | . . . . . 1 . . . . . 1 1 . Total Hacks 127 | . 25 . 2 . 21 4 3 2 28 . 29 13 . Successful 71 | . 9 . 2 . 5 3 3 2 28 . 14 5 . Failed 56 | . 16 . . . 16 1 . . . . 15 8 . Catastrophic 16 | . 2 . . . 6 . . . . . 7 1 . Database Lockouts . | . . . . . . . . . . . . . . Manual 59 | . 15 . 1 . 21 . . . . . 14 8 . Terminals 69 | . 25 . . . 17 . 3 . . . 17 7 . Fabricators 2 | . . . . . . . . . . . . 2 . Repair Stations 17 | . . . . . . 4 . . . . 11 2 . Recycling Units . | . . . . . . . . . . . . . . Scanalyzers . | . . . . . . . . . . . . . . Garrison Access 7 | . . . . . 4 . . . . . 1 2 . Terminal Hacks 52 | . 6 . 2 . 5 . 3 2 28 . 4 2 . Record 17 | . 1 . 1 . . . 3 . 11 . 1 . . Part Schematic 9 | . . . . . . . . . 9 . . . . Robot Schematic 5 | . . . . . . . . . 5 . . . . Robot Analysis 4 | . 1 . . . 1 . . . . . 2 . . Prototype ID Bank 5 | . 1 . . . 1 . . . 3 . . . . Open Door 2 | . . . . . . . . 2 . . . . . Branch Access Points 2 | . 1 . . . . . . . . . . 1 . Unreport Threat 6 | . 1 . . . 3 . . . . . 1 1 . Hauler Manifests 1 | . 1 . . . . . . . . . . . . Derelict Proto ID Bank 1 | . . . 1 . . . . . . . . . . Fabricator Hacks 2 | . . . . . . . . . . . . 2 . Load Schematic 1 | . . . . . . . . . . . . 1 . Build 1 | . . . . . . . . . . . . 1 . Repair Station Hacks 11 | . . . . . . 3 . . . . 8 . . Scan Component 6 | . . . . . . 2 . . . . 4 . . Repair 5 | . . . . . . 1 . . . . 4 . . Recycling Unit Hacks . | . . . . . . . . . . . . . . Scanalyzer . | . . . . . . . . . . . . . . Garrison Access Hacks 1 | . . . . . . . . . . . 1 . . Seal Access 1 | . . . . . . . . . . . 1 . . Unauthorized Hacks 5 | . 3 . . . . . . . . . 1 1 . Terminals 4 | . 3 . . . . . . . . . 1 . . Assimilate 1 | . 1 . . . . . . . . . . . . Botnet 2 | . 1 . . . . . . . . . 1 . . Operators 1 | . 1 . . . . . . . . . . . . Fabricators . | . . . . . . . . . . . . . . Repair Stations . | . . . . . . . . . . . . . . Recycling Units . | . . . . . . . . . . . . . . Scanalyzers . | . . . . . . . . . . . . . . Garrison Access 1 | . . . . . . . . . . . . 1 . Jam 1 | . . . . . . . . . . . . 1 . Data Cores Recovered . | . . . . . . . . . . . . . . Used . | . . . . . . . . . . . . . . Hacking Detections 30 | . 6 . . . 7 1 1 . . . 10 5 . Full Trace Events 8 | . 2 . . . 1 . 1 . . . 3 1 . Feedback Events . | . . . . . . . . . . . . . . Feedback Blocked . | . . . . . . . . . . . . . . Robot Schematics Acquired 5 | . . . . . . . . . 5 . . . . Robots Built . | . . . . . . . . . . . . . . Authchips . | . . . . . . . . . . . . . . Time . | . . . . . . . . . . . . . . Total Robot Build Rating . | . . . . . . . . . . . . . . Part Schematics Acquired 9 | . . . . . . . . . 9 . . . . Parts Built 1 | . . . . . . . . . . . . 1 . Authchips . | . . . . . . . . . . . . . . Time 152 | . . . . . . . . . . . . 152 . Total Part Build Rating 5 | . . . . . . . . . . . . 5 . Parts Repaired 4 | . . . . . . 1 . . . . 3 . . Time 240 | . . . . . . 50 . . . . 190 . . Parts Recycled . | . . . . . . . . . . . . . . Recycled Matter . | . . . . . . . . . . . . . . Retrieved Matter . | . . . . . . . . . . . . . . Retrieved Components . | . . . . . . . . . . . . . . Parts Scanalyzed . | . . . . . . . . . . . . . . Part Schematics Acquired . | . . . . . . . . . . . . . . Parts Damaged . | . . . . . . . . . . . . . . Bothacking | -11 -10 -10 -10 -9 -8 -7 -7 -7 -7 -6 -6 -5 -5 ------------ Run | Yrd Mat Min Exi Min Mat Fac Low Low Dat Pro Fac Fac Upp Used RIF Installer . | . . . . . . . . . . . . . . Robots Hacked . | . . . . . . . . . . . . . . Non-combat . | . . . . . . . . . . . . . . Combat . | . . . . . . . . . . . . . . Robot Hacks Applied . | . . . . . . . . . . . . . . Relay Couplers Released 1 | . . . . . . . . . . . . 1 . Machine Destruction 1 | . . . . . . . . . . . . 1 . Fabnet Peak Effective % . | . . . . . . . . . . . . . . Robots Rewired . | . . . . . . . . . . . . . . Allies Hacked . | . . . . . . . . . . . . . . Hacks Repelled . | . . . . . . . . . . . . . . Allies | -11 -10 -10 -10 -9 -8 -7 -7 -7 -7 -6 -6 -5 -5 -------- Run | Yrd Mat Min Exi Min Mat Fac Low Low Dat Pro Fac Fac Upp Total Allies 1 | . . 1 . . . . . . . . . . . Largest Group 1 | . . 1 . . . . . . . . . . . Highest-Rated Group 31 | . . 31 . . . . . . . . . . . Highest-Rated Ally 31 | . . 31 . . . . . . . . . . . Total Orders . | . . . . . . . . . . . . . . Ally Attacks 1 | . . 1 . . . . . . . . . . . Total Damage 22 | . . 22 . . . . . . . . . . . Kills 1 | . . 1 . . . . . . . . . . . Allies Corrupted . | . . . . . . . . . . . . . . Allies Melted . | . . . . . . . . . . . . . . Intel | -11 -10 -10 -10 -9 -8 -7 -7 -7 -7 -6 -6 -5 -5 ------- Run | Yrd Mat Min Exi Min Mat Fac Low Low Dat Pro Fac Fac Upp Robot Analysis Total 4 | . 1 . . . 1 . . . . . 2 . . Derelict Logs Recovered 11 | . . 3 . 3 . . 3 1 . 1 . . . Drone Launches . | . . . . . . . . . . . . . . Drone Recoveries . | . . . . . . . . . . . . . . Exploration | -11 -10 -10 -10 -9 -8 -7 -7 -7 -7 -6 -6 -5 -5 ------------- Run | Yrd Mat Min Exi Min Mat Fac Low Low Dat Pro Fac Fac Upp Turns Passed 14956 | 90 1184 853 412 1394 2458 508 1240 1227 137 652 2652 2038 111 Spaces Moved 8165 | 55 633 522 239 573 812 359 954 921 110 384 1393 1060 150 Core 171 | 12 . . . . . . . . . . . 9 150 Treads 2822 | 43 633 522 239 573 812 . . . . . . . . Legs 5172 | . . . . . . 359 954 921 110 384 1393 1051 . Wheels . | . . . . . . . . . . . . . . Hover . | . . . . . . . . . . . . . . Flight . | . . . . . . . . . . . . . . Fastest Speed 50 | 50 160 160 160 240 160 120 120 122 125 125 115 50 50 Average Speed 154 | 143 160 160 169 240 237 120 120 124 125 126 146 142 50 Slowest Speed 750 | 160 160 160 240 240 250 120 122 125 125 200 265 750 50 Overloaded Moves . | . . . . . . . . . . . . . . Propulsion Burnouts . | . . . . . . . . . . . . . . Robots Hopped . | . . . . . . . . . . . . . . Cave-ins Triggered . | . . . . . . . . . . . . . . Exploration Rate (%) 57 | 3 91 97 61 99 59 8 94 89 74 40 30 25 32 Regions Visited 13 Branch Regions 8 Pre-discovered Areas 5 | . . 1 1 2 . . . . 1 . . . . Known Exits Taken 9 | . 1 . . . 1 1 1 1 1 1 1 1 . Unknown Exits Taken 4 | 1 . 1 1 1 . . . . . . . . . Scrap Searched 9 | . . 1 . 2 . . 4 1 . 1 . . . Spaces Dug 33 | . . . . . . . . . . . 18 15 . Terrain Destroyed 348 | . 42 2 . . 8 1 20 13 . 15 159 88 . Melee . | . . . . . . . . . . . . . . Projectile 130 | . . . . . 8 1 7 13 . 15 57 29 . AOE 218 | . 42 2 . . . . 13 . . . 102 59 . Terrain Rammed . | . . . . . . . . . . . . . . Walls Destroyed . | . . . . . . . . . . . . . . Machines Disabled . | . . . . . . . . . . . . . . Actions | -11 -10 -10 -10 -9 -8 -7 -7 -7 -7 -6 -6 -5 -5 --------- Run | Yrd Mat Min Exi Min Mat Fac Low Low Dat Pro Fac Fac Upp Total 9867 | 63 745 533 248 582 1205 432 991 961 109 485 1876 1472 165 Wait 1031 | . 45 2 . . 232 57 13 1 . 61 338 282 . Move 8152 | 54 632 521 238 572 811 358 953 920 109 383 1392 1059 150 Hop . | . . . . . . . . . . . . . . Pick Up 91 | 3 12 2 . . 28 1 1 7 . 1 22 14 . Fast Attach 39 | 6 6 . . 1 5 1 . . . 3 7 10 . Attach 40 | . 2 . . . 5 6 1 4 . 4 12 5 1 Detach 10 | . . . . 1 2 2 . . . 2 2 1 . Swap 45 | . 5 1 1 . 15 1 1 2 . 2 6 11 . Drop 81 | . 5 . 2 . 31 3 . 4 . . 18 18 . Fire 304 | . 30 5 . . 70 2 22 20 . 28 74 53 . Melee 14 | . . . . . . . . . . . . . 14 Ram . | . . . . . . . . . . . . . . Kick 19 | . . . . . . 1 . 3 . 1 5 9 . Crush 23 | . 8 1 . 8 6 . . . . . . . . Escape Stasis 10 | . . . . . . . . . . . . 10 . Rewire 8 | . . 1 7 . . . . . . . . . . Trap . | . . . . . . . . . . . . . . Miscellaneous . | . . . . . . . . . . . . . . Route ------- -11/Scrapyard -10/Materials (discovered 5 exits: [*Mat x3] / *Min x2) -10/Mines (discovered 3 exits: [*Mat x2] / *Exi) -10/Exiles (discovered 2 exits: [*Min x2]) -9/Mines (discovered 2 exits: *Mat x2) -8/Materials (discovered 2 exits: *Fac x2) -7/Factory (discovered 3 exits: *Fac / Sto / *Low) -7/Lower Caves -7/Lower Caves (discovered 2 exits: *Fac / *Dat) -7/Data Miner -6/Proximity Caves -6/Factory (discovered 3 exits: *Fac x2 / Ext) -5/Factory (discovered 3 exits: *Fac / *Upp x2) -5/Upper Caves History --------- Turn | Location | Event 25 | -11/Scrapyard | Discovered new exit (range 15) 91 | -11/Scrapyard | Entered Materials 288 | -10/Materials | Discovered new exit (range 16) 315 | -10/Materials | Build established: Mutant 440 | -10/Materials | Discovered new exit (range 9) 617 | -10/Materials | Identified exit to Mines 863 | -10/Materials | Discovered new exit (range 7) 1157 | -10/Materials | Discovered new exit (range 14) 1275 | -10/Materials | Entered Mines 1278 | -10/Mines | Received a Mining Laser from a helpful Derelict 1295 | -10/Mines | Assembled infested the area 1350 | -10/Mines | Learned location of Storage (-7) 1411 | -10/Mines | Deemed a non-threat by the Exiles lab entrance 1413 | -10/Mines | Discovered new exit (range 5) 1553 | -10/Mines | Discovered new exit (range 14) 1751 | -10/Mines | Discovered new exit (range 9) 1979 | -10/Mines | Learned Materials stockpile data 2128 | -10/Mines | Entered Exiles 2149 | -10/Exiles | Discovered new exit (range 15) 2172 | -10/Exiles | Met 8R-AWN 2192 | -10/Exiles | Met EX-HEX 2256 | -10/Exiles | Met EX-BIN 2275 | -10/Exiles | Aligned with FarCom system 2277 | -10/Exiles | Given EX-Vault access code 2315 | -10/Exiles | Opened EX-Vault 2355 | -10/Exiles | Warned to stay clear of 0b10 Research branches 2410 | -10/Exiles | Met EX-DEC 2418 | -10/Exiles | Learned location of Zion (-6) 2519 | -10/Exiles | Discovered new exit (range 10) 2540 | -10/Exiles | Entered Mines 2593 | -9/Mines | Discovered new exit (range 3) 2826 | -9/Mines | Discovered new exit (range 8) 2991 | -9/Mines | Learned 4 Materials zone layouts 3099 | -9/Mines | Learned Materials stockpile data 3934 | -9/Mines | Entered Materials 3934 | -8/Materials | Evolved 4 slots: Propulsion x1, Utility x2, Weapon x1 3935 | -8/Materials | Identified exit to Factory 4483 | -8/Materials | Build established: Tank 4912 | -8/Materials | Garrison activated, responded to threat 6369 | -8/Materials | Discovered exit to Factory (range 5) 6392 | -8/Materials | Entered Factory 6392 | -7/Factory | Evolved 2 slots: Propulsion x1, Weapon x1 6393 | -7/Factory | Identified exit to Storage 6576 | -7/Factory | Repaired Lgt. Angular Momentum Engine 6657 | -7/Factory | Discovered new exit (range 8) 6669 | -7/Factory | Identified exit to Factory 6829 | -7/Factory | Discovered new exit (range 9) 6854 | -7/Factory | Identified exit to Lower Caves 6882 | -7/Factory | Build established: Scavenger-Skirmisher 6900 | -7/Factory | Entered Lower Caves 7186 | -7/Lower Caves | Build established: Scavenger-Tank 7193 | -7/Lower Caves | Encountered a Warlord checkpoint 7200 | -7/Lower Caves | Learned Factory emergency access door positions 7208 | -7/Lower Caves | Attracted the attention of an 0b10 checkpoint 7282 | -7/Lower Caves | Learned Factory stockpile data 7813 | -7/Lower Caves | Discovered new exit (range 10) 7826 | -7/Lower Caves | Identified exit to Lower Caves 8076 | -7/Lower Caves | Attracted the attention of an 0b10 base 8140 | -7/Lower Caves | Entered another Lower Caves area 8193 | -7/Lower Caves | Lost 3 parts (1p1u1w) 8261 | -7/Lower Caves | Identified exit to Data Miner 8435 | -7/Lower Caves | Build established: Tank 8985 | -7/Lower Caves | Attacked by a delusional Derelict stockpiling parts 9367 | -7/Lower Caves | Entered Data Miner 9367 | -7/Data Miner | Discovered new exit (range 6) 9375 | -7/Data Miner | Identified exit to Proximity Caves 9401 | -7/Data Miner | Met Data Miner 9439 | -7/Data Miner | Learned location of Section 7 (-2) 9439 | -7/Data Miner | Acquired the access code to Warlord's prototype stash 9460 | -7/Data Miner | Received God Mode back door access code from Data Miner 9504 | -7/Data Miner | Entered Proximity Caves 10071 | -6/Proximity Caves | Spotted B-75 Beast 10131 | -6/Proximity Caves | Learned Factory terminal intel 10156 | -6/Proximity Caves | Entered Factory 10156 | -6/Factory | Evolved 2 slots: Utility x2 10157 | -6/Factory | Identified exit to Factory 10157 | -6/Factory | Identified exit to Extension 10160 | -6/Factory | Loaded intel: 28 terminal locations 10948 | -6/Factory | Build established: Infiltrator-Skirmisher 11162 | -6/Factory | Spotted B-75 Beast 11445 | -6/Factory | Repaired Broken Imp. Heat Sink 11507 | -6/Factory | Repaired Broken Imp. Titanium Leg 11841 | -6/Factory | Repaired Carbon-fiber Leg 12808 | -6/Factory | Entered another Factory area 12808 | -5/Factory | Evolved 2 slots: Propulsion x1, Utility x1 12999 | -5/Factory | Fabricated Lgt. Regenerative Plating? 13113 | -5/Factory | Build established: Infiltrator-Tank 13485 | -5/Factory | Build established: Infiltrator-Skirmisher 14308 | -5/Factory | First assault squad dispatched 14394 | -5/Factory | System corruption reached 10% 14610 | -5/Factory | Identified exit to Upper Caves 14718 | -5/Factory | Discovered new exit (range 12) 14737 | -5/Factory | Identified exit to Factory 14799 | -5/Factory | Spotted B-75 Beast 14844 | -5/Factory | Core integrity fell below 50% 14846 | -5/Factory | Entered Upper Caves 14870 | -5/Upper Caves | Lost 12 parts (2p4n4u2w) 14903 | -5/Upper Caves | Core integrity fell below 20% 14957 | -5/Upper Caves | Spotted B-75 Beast 14957 | -5/Upper Caves | Destroyed by B-75 Beast with Magnetic Acceleration Cannon Last Messages --------------- 14843_ U-05 Engineer builds a Wall. 14843_ Acquired Lance. 14846_ U-05 Engineer builds a Wall. LOCATION=UPPER CAVES GOAL=ESCAPE 14852_ S-27 Virus destroyed. 14857_ System corrupted: Heat flow error (+246). 14882_ F3FQ|OMYXHDCKCFG|KJBL7GKN,T|RBTGELYB 14897_ System corrupted: Energy discharge (-19). 14897_ S-27 Virus destroyed. 14905_ Lgt. Nuclear Core fries itself beyond repair. 14906_ Unknown Flight Unit fries itself beyond repair. 14906_ Unknown Ballistic Gun fries itself beyond repair. 14911_ Destroyed Unknown Flight Unit. 14911_ S-27 Virus destroyed. 14915_ Acquired 10 matter. 14921_ Unknown Flight Unit fries itself beyond repair. 14921_ Destroyed Unknown Flight Unit. 14932_ Destroyed Unknown Ballistic Gun. 14932_ S-27 Virus destroyed. Map ----- +----------------------------------------------------+ | ?????????????????????????????????????????????????? | | ?????????????????????????????????????????????????? | | ?????????????????????????????????????????????????? | | ?????????????????????????????????????????????????? | | ?????????????????????????????????????????????????? | | ?????????????????????????????????????????????????? | | ?????????????????????????????????????????????????? | | ?????????????????????????????????????????????????? | | ?????????????????????????????????????????????????? | | ?????????????????????????????????????????????????? | | ??????????????????????? ?????????????????????? | | ?????????????????????## #????????????????????? | | ???????????????????## #????????????????????? | | ??????????????????? ###??????????????????? | | ???????????????????? ##?????????????????? | | ???????????????????? #?????????????????? | | ????????????????????? ##????????????????? | | ????????????????????? ##???????????????? | | ????????????????????? #???????????????? | | ????????????????????? #???????????????? | | ?????????????????????? #????????????????? | | ??????????????????????? #????????????????? | | ??????????????????????? #?????????????????? | | ???????????????????????? #??????????????????? | | ?????????????????# #### #???????????????????? | | ?????????????????# @ #?###????????????????? | | ??????????# ; ## %### ##???????????????? | | ??????????# BB ????## ## #???????????????? | | ??????????? BB????????# #???????????????? | | ???????????????????????# #???????????????? | | ???????????????????????# ##???????????????? | | ?????????????????????####### ##????????????????? | | ????????????????????##* ### #?????? ### ?????? | | ???????????????????## ## ##### #????? | | ???????????????????# ! ## #??????????# | | ???????????????????# ## #???????????# | | ???????????????????# /## ###???????????? | | ???????????????????# ## ###?????????????? | | ???????????????????# ## ######???????????? | | ????????????????#### ### ???????????? | | ????????????????# #### ###### #???????????? | | ????????????????## #?# ##??## #??????????## | | ?????????????????# ### #### #??????????? # | | ????????????????## ######?????? | | ????????######?## #????## | | ????????# ### ##?### | | ????????# ### ### | | ????????# #??# | | ????????## % ##?# | | ????????## ## ### #? | +----------------------------------------------------+ Best States ------------- Heat Dissipation 78 Energy Generation 19 Energy Capacity 500 Matter Stores 300 Matter Capacity 300 Sight Range 16 Terrain Scan Density 10 ECM Strength 1 Jamming Range 14 Base Temperature (-) 150 Armor Coverage 450 Resistance: KI 20 Evasion (%) 55 Recoil Reduction 3 Item Schematics ----------------- Combat Drone Bay | -7/Data Miner | Free Lgt. Regenerative Plating | -7/Data Miner | Free Cld. Cesium-ion Thruster | -7/Data Miner | Free Gravity Neutralizer | -7/Data Miner | Free Cld. Plasma Cannon | -7/Data Miner | Free Gyrokinetic Inverter | -7/Data Miner | Free Adv. Field Recycling Unit | -7/Data Miner | Free Lrn. Proton Cannon | -7/Data Miner | Free Adv. System Restoration Module | -7/Data Miner | Free Robot Schematics ------------------ R-10 Processor | -7/Data Miner | Free G-50 Soldier | -7/Data Miner | Free H-66 Slayer | -7/Data Miner | Free B-48 Gladiator | -7/Data Miner | Free B-60 Warrior | -7/Data Miner | Free Fabricated ------------ Lgt. Regenerative Plating | x1 | -5/Factory Alien Tech Used ----------------- None Achievements -------------- None Challenges ------------ None Game ------ Seed DisruptionActuatorCutter Manual? 0 Play Time 03:00:10 Cumulative 62.7 hours Start 2025.01.03 @ 23:53:04 End 2025.01.05 @ 02:12:36 Sessions 3 Manual Loads 0 Difficulty Rogue Special Mode None Game No. 42 Rogue 42 Adventurer 0 Explorer 0 Win Type - Total 0 Types 0/0/0/0/0/0/0/0/0 Lore% 25 Gallery% 31 Achievement% 31 Wizard Run 0 Options --------- Layout 0 ASCII 0 Keyboard 1 Movement Vi Keybinds 0 Fullscreen 2 Font 18/Terminus Map View 76x50 Zoom Use 0% Tactical HUD 1 Map Filters NONE Filters NONE Steam 1 RUN: 942cd8f7-d333-48c8-bd4e-0452d7e9a21c